[Event "Titled Tuesday Blitz July 18 Late 2023"]
[White "Gaitan, Juan Manuel"]
[Black "Matlakov, Maxim"]
[WhiteFideId "121657"]
[BlackFideId "4168003"]
[WhiteElo "2616"]
[BlackElo "2949"]
[Result "0-1"]
[Round "3"]
[TimeControl "180+2"]
[Date "2023.07.18"]
[WhiteClock "0:00:13"]
[BlackClock "0:00:39"]
[Board "18"]

1. d4 {[%clk 0:03:00]}  d5 {[%clk 0:02:59]} 2. c4 {[%clk 0:02:43]}  e6 {[%clk 0:02:58]} 3. Nf3 {[%clk 0:02:43]}  c6 {[%clk 0:02:56]} 4. e3 {[%clk 0:02:35]}  Nd7 {[%clk 0:02:54]} 5. Qc2 {[%clk 0:02:33]}  Ngf6 {[%clk 0:02:51]} 6. Nc3 {[%clk 0:02:34]}  Bd6 {[%clk 0:02:47]} 7. Bd2 {[%clk 0:02:32]}  O-O {[%clk 0:02:46]} 8. Be2 {[%clk 0:02:30]}  Qe7 {[%clk 0:02:44]} 9. O-O {[%clk 0:02:30]}  dxc4 {[%clk 0:02:44]} 10. Bxc4 {[%clk 0:02:30]}  e5 {[%clk 0:02:44]} 11. Ne4 {[%clk 0:02:27]}  Nxe4 {[%clk 0:02:37]} 12. Qxe4 {[%clk 0:02:28]}  Nf6 {[%clk 0:02:35]} 13. Qh4 {[%clk 0:02:15]}  e4 {[%clk 0:02:34]} 14. Ne5 {[%clk 0:02:15]}  Be6 {[%clk 0:02:27]} 15. Bc3 {[%clk 0:02:04]}  Bxc4 {[%clk 0:02:13]} 16. Nxc4 {[%clk 0:02:02]}  Bc7 {[%clk 0:02:10]} 17. Ne5 {[%clk 0:01:57]}  Qe6 {[%clk 0:02:08]} 18. Rfd1 {[%clk 0:01:47]}  Rfe8 {[%clk 0:02:08]} 19. h3 {[%clk 0:01:34]}  Rad8 {[%clk 0:02:08]} 20. Ng4 {[%clk 0:01:32]}  Nd5 {[%clk 0:02:07]} 21. Rac1 {[%clk 0:01:30]}  h6 {[%clk 0:02:01]} 22. a3 {[%clk 0:01:27]}  a6 {[%clk 0:02:01]} 23. Qh5 {[%clk 0:01:25]}  f5 {[%clk 0:01:57]} 24. Nh2 {[%clk 0:01:25]}  Qf7 {[%clk 0:01:56]} 25. Qxf7+ {[%clk 0:01:24]}  Kxf7 {[%clk 0:01:57]} 26. Nf1 {[%clk 0:01:25]}  g5 {[%clk 0:01:56]} 27. Nd2 {[%clk 0:01:25]}  h5 {[%clk 0:01:55]} 28. Nb3 {[%clk 0:01:23]}  Bd6 {[%clk 0:01:47]} 29. Ba5 {[%clk 0:01:23]}  Rd7 {[%clk 0:01:46]} 30. Nc5 {[%clk 0:01:22]}  Rde7 {[%clk 0:01:44]} 31. Be1 {[%clk 0:01:20]}  h4 {[%clk 0:01:44]} 32. Kf1 {[%clk 0:01:18]}  Kg6 {[%clk 0:01:43]} 33. Ke2 {[%clk 0:01:18]}  f4 {[%clk 0:01:43]} 34. b4 {[%clk 0:01:15]}  Rf7 {[%clk 0:01:43]} 35. Nb3 {[%clk 0:00:49]}  f3+ {[%clk 0:01:38]} 36. gxf3 {[%clk 0:00:50]}  Rxf3 {[%clk 0:01:30]} 37. Na5 {[%clk 0:00:47]}  Re7 {[%clk 0:01:26]} 38. Nxc6 {[%clk 0:00:41]}  bxc6 {[%clk 0:01:24]} 39. Rxc6 {[%clk 0:00:42]}  Re6 {[%clk 0:01:08]} 40. Rxa6 {[%clk 0:00:33]}  Rxh3 {[%clk 0:01:08]} 41. Rc1 {[%clk 0:00:31]}  Rf3 {[%clk 0:01:07]} 42. Rcc6 {[%clk 0:00:28]}  Rff6 {[%clk 0:01:07]} 43. b5 {[%clk 0:00:29]}  h3 {[%clk 0:01:07]} 44. b6 {[%clk 0:00:29]}  h2 {[%clk 0:01:07]} 45. b7 {[%clk 0:00:30]}  h1=Q {[%clk 0:01:04]} 46. Rxd6 {[%clk 0:00:30]}  Re8 {[%clk 0:00:42]} 47. Rxf6+ {[%clk 0:00:19]}  Nxf6 {[%clk 0:00:43]} 48. Ra8 {[%clk 0:00:13]}  Qh8 {[%clk 0:00:39]} 0-1


[Site "https://www.chess.com"]

[Event "Titled Tuesday Blitz July 18 Late 2023"]
[White "Terry, Renato"]
[Black "Karaoglan, Doruk"]
[WhiteFideId "3803457"]
[BlackFideId "6390927"]
[WhiteElo "2944"]
[BlackElo "2613"]
[Result "1-0"]
[Round "3"]
[TimeControl "180+2"]
[Date "2023.07.18"]
[WhiteClock "0:00:10"]
[BlackClock "0:00:00"]
[Board "19"]

1. d4 {[%clk 0:03:00]}  Nf6 {[%clk 0:02:59]} 2. Nf3 {[%clk 0:03:01]}  g6 {[%clk 0:02:59]} 3. Bg5 {[%clk 0:03:01]}  Bg7 {[%clk 0:03:00]} 4. c3 {[%clk 0:03:01]}  d5 {[%clk 0:02:59]} 5. Nbd2 {[%clk 0:03:01]}  O-O {[%clk 0:02:59]} 6. e3 {[%clk 0:03:01]}  c5 {[%clk 0:03:00]} 7. dxc5 {[%clk 0:03:01]}  a5 {[%clk 0:02:57]} 8. a4 {[%clk 0:03:00]}  Nc6 {[%clk 0:02:57]} 9. Bb5 {[%clk 0:03:00]}  Qc7 {[%clk 0:02:55]} 10. O-O {[%clk 0:02:54]}  e5 {[%clk 0:02:41]} 11. c4 {[%clk 0:02:36]}  d4 {[%clk 0:02:24]} 12. exd4 {[%clk 0:02:35]}  Nxd4 {[%clk 0:02:24]} 13. Nxd4 {[%clk 0:02:31]}  exd4 {[%clk 0:02:25]} 14. Bxf6 {[%clk 0:02:31]}  Bxf6 {[%clk 0:02:25]} 15. Ne4 {[%clk 0:02:32]}  Bg7 {[%clk 0:02:24]} 16. Qf3 {[%clk 0:02:27]}  Be6 {[%clk 0:02:04]} 17. Rad1 {[%clk 0:02:19]}  Rad8 {[%clk 0:02:04]} 18. b3 {[%clk 0:02:18]}  Bf5 {[%clk 0:01:20]} 19. Nd6 {[%clk 0:02:16]}  Bc2 {[%clk 0:01:20]} 20. Rd2 {[%clk 0:02:09]}  d3 {[%clk 0:01:20]} 21. Nxb7 {[%clk 0:02:08]}  Rd4 {[%clk 0:01:18]} 22. Rc1 {[%clk 0:01:27]}  Bh6 {[%clk 0:01:14]} 23. Rcxc2 {[%clk 0:01:26]}  dxc2 {[%clk 0:01:15]} 24. Rxc2 {[%clk 0:01:27]}  Qxb7 {[%clk 0:01:13]} 25. c6 {[%clk 0:01:24]}  Qe7 {[%clk 0:01:09]} 26. g3 {[%clk 0:01:24]}  Qe1+ {[%clk 0:01:08]} 27. Kg2 {[%clk 0:01:24]}  Rd1 {[%clk 0:01:07]} 28. Qe2 {[%clk 0:01:17]}  Qg1+ {[%clk 0:00:53]} 29. Kh3 {[%clk 0:01:17]}  Re1 {[%clk 0:00:53]} 30. Qf3 {[%clk 0:01:12]}  Re5 {[%clk 0:00:53]} 31. g4 {[%clk 0:01:12]}  Qf1+ {[%clk 0:00:50]} 32. Qg2 {[%clk 0:01:06]}  Qd3+ {[%clk 0:00:49]} 33. f3 {[%clk 0:01:07]}  f5 {[%clk 0:00:36]} 34. g5 {[%clk 0:01:06]}  f4 {[%clk 0:00:35]} 35. Rd2 {[%clk 0:01:02]}  Qe3 {[%clk 0:00:19]} 36. Rd5 {[%clk 0:01:00]}  Bg7 {[%clk 0:00:16]} 37. c7 {[%clk 0:00:54]}  Rxd5 {[%clk 0:00:16]} 38. cxd5 {[%clk 0:00:55]}  Qe5 {[%clk 0:00:16]} 39. Qc2 {[%clk 0:00:53]}  Rc8 {[%clk 0:00:15]} 40. Bc4 {[%clk 0:00:36]}  Kh8 {[%clk 0:00:14]} 41. Kg4 {[%clk 0:00:32]}  Rxc7 {[%clk 0:00:14]} 42. Qd3 {[%clk 0:00:33]}  h5+ {[%clk 0:00:12]} 43. Kh4 {[%clk 0:00:32]}  Qd6 {[%clk 0:00:12]} 44. Qd2 {[%clk 0:00:25]}  Re7 {[%clk 0:00:12]} 45. Qxa5 {[%clk 0:00:24]}  Bd4 {[%clk 0:00:11]} 46. Qa8+ {[%clk 0:00:20]}  Kh7 {[%clk 0:00:11]} 47. Qc6 {[%clk 0:00:21]}  Bf2+ {[%clk 0:00:10]} 48. Kh3 {[%clk 0:00:21]}  Qe5 {[%clk 0:00:10]} 49. d6 {[%clk 0:00:10]}  Qf5+ {[%clk 0:00:02]} 50. Kg2 {[%clk 0:00:11]}  Re8 {[%clk 0:00:02]} 51. Qxe8 {[%clk 0:00:10]}  Qxg5+ {[%clk 0:00:00]} 52. Kxf2 {[%clk 0:00:10]} 1-0


[Site "https://www.chess.com"]

[Event "Titled Tuesday Blitz July 18 Late 2023"]
[White "Anton Guijarro, David"]
[Black "David, Bogdan-Emanuel"]
[WhiteFideId "2285525"]
[BlackFideId "1229907"]
[WhiteElo "2928"]
[BlackElo "2612"]
[Result "1-0"]
[Round "3"]
[TimeControl "180+2"]
[Date "2023.07.18"]
[WhiteClock "0:00:10"]
[BlackClock "0:00:03"]
[Board "20"]

1. d4 {[%clk 0:03:00]}  d6 {[%clk 0:02:56]} 2. e4 {[%clk 0:02:59]}  g6 {[%clk 0:02:55]} 3. Be3 {[%clk 0:02:59]}  Bg7 {[%clk 0:02:55]} 4. Qd2 {[%clk 0:02:59]}  Nc6 {[%clk 0:02:49]} 5. Nc3 {[%clk 0:02:52]}  e5 {[%clk 0:02:48]} 6. dxe5 {[%clk 0:02:50]}  Nxe5 {[%clk 0:02:46]} 7. Nf3 {[%clk 0:02:43]}  Nxf3+ {[%clk 0:02:42]} 8. gxf3 {[%clk 0:02:43]}  a6 {[%clk 0:02:41]} 9. h4 {[%clk 0:02:42]}  Nf6 {[%clk 0:02:38]} 10. O-O-O {[%clk 0:02:38]}  Be6 {[%clk 0:02:36]} 11. Be2 {[%clk 0:02:21]}  Qd7 {[%clk 0:02:30]} 12. Kb1 {[%clk 0:01:37]}  O-O-O {[%clk 0:02:10]} 13. Qd4 {[%clk 0:01:29]}  Qc6 {[%clk 0:01:59]} 14. Qa7 {[%clk 0:01:17]}  Kd7 {[%clk 0:01:03]} 15. Bg5 {[%clk 0:00:43]}  Ra8 {[%clk 0:00:42]} 16. Qe3 {[%clk 0:00:43]}  Ne8 {[%clk 0:00:33]} 17. Nd5 {[%clk 0:00:25]}  h6 {[%clk 0:00:32]} 18. Bf4 {[%clk 0:00:24]}  Nf6 {[%clk 0:00:24]} 19. Be5 {[%clk 0:00:17]}  Nh5 {[%clk 0:00:08]} 20. Bxg7 {[%clk 0:00:16]}  Nxg7 {[%clk 0:00:09]} 21. Qd4 {[%clk 0:00:12]}  Nh5 {[%clk 0:00:07]} 22. Nb4 {[%clk 0:00:08]}  Qb6 {[%clk 0:00:04]} 23. Qxb6 {[%clk 0:00:08]}  cxb6 {[%clk 0:00:05]} 24. e5 {[%clk 0:00:08]}  d5 {[%clk 0:00:04]} 25. Nxd5 {[%clk 0:00:08]}  Bxd5 {[%clk 0:00:05]} 26. Rxd5+ {[%clk 0:00:09]}  Ke6 {[%clk 0:00:06]} 27. Rd6+ {[%clk 0:00:09]}  Kxe5 {[%clk 0:00:06]} 28. Rxb6 {[%clk 0:00:09]}  Nf4 {[%clk 0:00:06]} 29. Re1 {[%clk 0:00:10]}  Nd5 {[%clk 0:00:05]} 30. Bc4+ {[%clk 0:00:09]}  Kd4 {[%clk 0:00:06]} 31. Bxd5 {[%clk 0:00:09]}  Kxd5 {[%clk 0:00:06]} 32. Rxb7 {[%clk 0:00:09]}  f5 {[%clk 0:00:07]} 33. Rd7+ {[%clk 0:00:09]}  Kc6 {[%clk 0:00:07]} 34. Rde7 {[%clk 0:00:10]}  Kc5 {[%clk 0:00:06]} 35. b3 {[%clk 0:00:09]}  Rad8 {[%clk 0:00:05]} 36. Rc7+ {[%clk 0:00:10]}  Kb6 {[%clk 0:00:04]} 37. Rg7 {[%clk 0:00:09]}  Rd6 {[%clk 0:00:04]} 38. Kb2 {[%clk 0:00:09]}  Rc8 {[%clk 0:00:03]} 39. Re2 {[%clk 0:00:09]}  Rdc6 {[%clk 0:00:03]} 40. a4 {[%clk 0:00:09]}  a5 {[%clk 0:00:03]} 41. f4 {[%clk 0:00:09]}  Ka6 {[%clk 0:00:03]} 42. Rf7 {[%clk 0:00:08]}  Rd6 {[%clk 0:00:03]} 43. h5 {[%clk 0:00:08]}  gxh5 {[%clk 0:00:03]} 44. Rxf5 {[%clk 0:00:08]}  Rd4 {[%clk 0:00:04]} 45. Rxh5 {[%clk 0:00:08]}  Rxf4 {[%clk 0:00:03]} 46. Rxh6+ {[%clk 0:00:09]}  Kb7 {[%clk 0:00:03]} 47. Rh5 {[%clk 0:00:09]}  Rcf8 {[%clk 0:00:01]} 48. Rxa5 {[%clk 0:00:09]}  Kb6 {[%clk 0:00:02]} 49. Rb5+ {[%clk 0:00:09]}  Kc6 {[%clk 0:00:02]} 50. Rbe5 {[%clk 0:00:07]}  Kc7 {[%clk 0:00:02]} 51. a5 {[%clk 0:00:08]}  Ra8 {[%clk 0:00:02]} 52. Rc5+ {[%clk 0:00:07]}  Kd6 {[%clk 0:00:02]} 53. Rb5 {[%clk 0:00:07]}  Kc6 {[%clk 0:00:03]} 54. Rh5 {[%clk 0:00:07]}  Kd6 {[%clk 0:00:02]} 55. c3 {[%clk 0:00:07]}  Rf3 {[%clk 0:00:03]} 56. b4 {[%clk 0:00:07]}  Kc6 {[%clk 0:00:03]} 57. Rc5+ {[%clk 0:00:06]}  Kd6 {[%clk 0:00:03]} 58. Rd2+ {[%clk 0:00:06]}  Ke6 {[%clk 0:00:04]} 59. Kb3 {[%clk 0:00:07]}  Rh8 {[%clk 0:00:03]} 60. a6 {[%clk 0:00:06]}  Rh1 {[%clk 0:00:03]} 61. a7 {[%clk 0:00:06]}  Rb1+ {[%clk 0:00:03]} 62. Rb2 {[%clk 0:00:07]}  Ra1 {[%clk 0:00:03]} 63. Ra5 {[%clk 0:00:07]}  Rxa5 {[%clk 0:00:02]} 64. bxa5 {[%clk 0:00:08]}  Rf8 {[%clk 0:00:03]} 65. Kc4 {[%clk 0:00:08]}  Ra8 {[%clk 0:00:03]} 66. Rb7 {[%clk 0:00:09]}  Kd6 {[%clk 0:00:04]} 67. Kb5 {[%clk 0:00:09]}  Kd5 {[%clk 0:00:04]} 68. c4+ {[%clk 0:00:09]}  Kd6 {[%clk 0:00:03]} 69. c5+ {[%clk 0:00:10]} 1-0


[Site "https://www.chess.com"]

[Event "Titled Tuesday Blitz July 18 Late 2023"]
[White "Tang, Andrew"]
[Black "Piesik, Piotr"]
[WhiteFideId "2059630"]
[BlackFideId "1136194"]
[WhiteElo "2881"]
[BlackElo "2607"]
[Result "1-0"]
[Round "3"]
[TimeControl "180+2"]
[Date "2023.07.18"]
[WhiteClock "0:00:44"]
[BlackClock "0:00:16"]
[Board "23"]

1. d4 {[%clk 0:03:00]}  Nf6 {[%clk 0:02:58]} 2. c4 {[%clk 0:03:00]}  c5 {[%clk 0:02:59]} 3. d5 {[%clk 0:02:53]}  b5 {[%clk 0:02:59]} 4. cxb5 {[%clk 0:02:53]}  a6 {[%clk 0:02:59]} 5. e3 {[%clk 0:02:52]}  e6 {[%clk 0:02:58]} 6. Nc3 {[%clk 0:02:49]}  Bb7 {[%clk 0:02:52]} 7. e4 {[%clk 0:02:46]}  exd5 {[%clk 0:02:51]} 8. exd5 {[%clk 0:02:47]}  d6 {[%clk 0:02:49]} 9. a4 {[%clk 0:02:47]}  Be7 {[%clk 0:02:49]} 10. Nf3 {[%clk 0:02:47]}  O-O {[%clk 0:02:49]} 11. Be2 {[%clk 0:02:45]}  axb5 {[%clk 0:02:49]} 12. Bxb5 {[%clk 0:02:45]}  Na6 {[%clk 0:02:48]} 13. O-O {[%clk 0:02:44]}  Nb4 {[%clk 0:02:47]} 14. Bc4 {[%clk 0:02:44]}  Nd7 {[%clk 0:02:40]} 15. Bf4 {[%clk 0:02:42]}  Nb6 {[%clk 0:02:39]} 16. Bb3 {[%clk 0:02:37]}  c4 {[%clk 0:02:38]} 17. Bc2 {[%clk 0:02:32]}  Nxc2 {[%clk 0:02:35]} 18. Qxc2 {[%clk 0:02:33]}  Nxd5 {[%clk 0:02:35]} 19. Nxd5 {[%clk 0:02:33]}  Bxd5 {[%clk 0:02:36]} 20. Nd4 {[%clk 0:02:34]}  g6 {[%clk 0:02:24]} 21. Rfd1 {[%clk 0:02:28]}  Bb7 {[%clk 0:02:11]} 22. Qxc4 {[%clk 0:02:26]}  Ra5 {[%clk 0:02:05]} 23. Nb5 {[%clk 0:02:16]}  d5 {[%clk 0:02:04]} 24. Qb3 {[%clk 0:02:10]}  Qd7 {[%clk 0:02:00]} 25. Qc3 {[%clk 0:02:07]}  Rfa8 {[%clk 0:01:54]} 26. b3 {[%clk 0:01:57]}  Bf8 {[%clk 0:01:50]} 27. Rac1 {[%clk 0:01:55]}  Qg4 {[%clk 0:01:39]} 28. Bg3 {[%clk 0:01:50]}  R5a6 {[%clk 0:01:38]} 29. h3 {[%clk 0:01:49]}  Qh5 {[%clk 0:01:33]} 30. Qd3 {[%clk 0:01:36]}  Rc6 {[%clk 0:01:23]} 31. Nc7 {[%clk 0:01:28]}  Rxc1 {[%clk 0:01:21]} 32. Rxc1 {[%clk 0:01:28]}  Rc8 {[%clk 0:01:20]} 33. a5 {[%clk 0:01:28]}  Bh6 {[%clk 0:01:10]} 34. Rc2 {[%clk 0:01:23]}  d4 {[%clk 0:01:02]} 35. a6 {[%clk 0:01:13]}  Ba8 {[%clk 0:00:48]} 36. Qxd4 {[%clk 0:01:06]}  Qa5 {[%clk 0:00:23]} 37. a7 {[%clk 0:00:47]}  Bg7 {[%clk 0:00:22]} 38. Qd7 {[%clk 0:00:46]}  Bb7 {[%clk 0:00:16]} 39. Qxc8+ {[%clk 0:00:44]} 1-0


[Site "https://www.chess.com"]

[Event "Titled Tuesday Blitz July 18 Late 2023"]
[White "Tin, Jingyao"]
[Black "Voege, Tobias"]
[WhiteFideId "5804418"]
[BlackFideId "1270513"]
[WhiteElo "2867"]
[BlackElo "2607"]
[Result "1-0"]
[Round "3"]
[TimeControl "180+2"]
[Date "2023.07.18"]
[WhiteClock "0:00:03"]
[BlackClock "0:00:00"]
[Board "24"]

1. e4 {[%clk 0:03:00]}  c6 {[%clk 0:03:00]} 2. Nf3 {[%clk 0:02:57]}  d5 {[%clk 0:03:00]} 3. d3 {[%clk 0:02:56]}  Bg4 {[%clk 0:02:58]} 4. h3 {[%clk 0:02:56]}  Bh5 {[%clk 0:02:57]} 5. e5 {[%clk 0:02:47]}  e6 {[%clk 0:02:55]} 6. Be2 {[%clk 0:02:42]}  c5 {[%clk 0:02:53]} 7. O-O {[%clk 0:02:42]}  Nc6 {[%clk 0:02:53]} 8. Re1 {[%clk 0:02:41]}  Nge7 {[%clk 0:02:44]} 9. Nh4 {[%clk 0:02:30]}  Bxe2 {[%clk 0:02:39]} 10. Qxe2 {[%clk 0:02:31]}  Ng6 {[%clk 0:02:32]} 11. Nxg6 {[%clk 0:02:31]}  hxg6 {[%clk 0:02:33]} 12. c3 {[%clk 0:02:26]}  Qh4 {[%clk 0:02:16]} 13. Nd2 {[%clk 0:02:23]}  Be7 {[%clk 0:02:11]} 14. a4 {[%clk 0:02:17]}  Bd8 {[%clk 0:02:08]} 15. Nb3 {[%clk 0:02:02]}  c4 {[%clk 0:01:52]} 16. dxc4 {[%clk 0:01:58]}  Qxc4 {[%clk 0:01:53]} 17. Qd1 {[%clk 0:01:46]}  Bb6 {[%clk 0:01:35]} 18. a5 {[%clk 0:01:41]}  Bc7 {[%clk 0:01:35]} 19. Nd2 {[%clk 0:01:33]}  Qb5 {[%clk 0:01:28]} 20. Nf3 {[%clk 0:01:05]}  Bxa5 {[%clk 0:01:18]} 21. Bf4 {[%clk 0:01:02]}  Bb6 {[%clk 0:01:13]} 22. Rb1 {[%clk 0:00:47]}  Rd8 {[%clk 0:01:00]} 23. Ng5 {[%clk 0:00:33]}  Ne7 {[%clk 0:00:38]} 24. Be3 {[%clk 0:00:20]}  Bxe3 {[%clk 0:00:32]} 25. Rxe3 {[%clk 0:00:21]}  Nf5 {[%clk 0:00:28]} 26. Re1 {[%clk 0:00:19]}  a6 {[%clk 0:00:24]} 27. Qf3 {[%clk 0:00:15]}  Rh5 {[%clk 0:00:18]} 28. Qf4 {[%clk 0:00:04]}  Qc4 {[%clk 0:00:17]} 29. Qd2 {[%clk 0:00:03]}  Qh4 {[%clk 0:00:11]} 30. Nf3 {[%clk 0:00:03]}  Qc4 {[%clk 0:00:10]} 31. Ra1 {[%clk 0:00:04]}  Rh8 {[%clk 0:00:09]} 32. Red1 {[%clk 0:00:03]}  Nh4 {[%clk 0:00:07]} 33. Nd4 {[%clk 0:00:03]}  Qc7 {[%clk 0:00:06]} 34. Qf4 {[%clk 0:00:01]}  Nf5 {[%clk 0:00:06]} 35. Nf3 {[%clk 0:00:02]}  Qc4 {[%clk 0:00:04]} 36. Qd2 {[%clk 0:00:02]}  b5 {[%clk 0:00:05]} 37. Rxa6 {[%clk 0:00:02]}  b4 {[%clk 0:00:05]} 38. Ra4 {[%clk 0:00:02]}  Rb8 {[%clk 0:00:06]} 39. cxb4 {[%clk 0:00:02]}  Ke7 {[%clk 0:00:04]} 40. Rc1 {[%clk 0:00:02]}  Qb5 {[%clk 0:00:04]} 41. Ra7+ {[%clk 0:00:02]}  Rb7 {[%clk 0:00:03]} 42. Nd4 {[%clk 0:00:02]}  Nxd4 {[%clk 0:00:00]} 43. Qxd4 {[%clk 0:00:03]} 1-0


[Site "https://www.chess.com"]

[Event "Titled Tuesday Blitz July 18 Late 2023"]
[White "Moskalenko, Alexander"]
[Black "Belov, Alexei"]
[WhiteFideId "4155351"]
[BlackFideId "4128206"]
[WhiteElo "2865"]
[BlackElo "2603"]
[Result "1-0"]
[Round "3"]
[TimeControl "180+2"]
[Date "2023.07.18"]
[WhiteClock "0:02:11"]
[BlackClock "0:01:00"]
[Board "25"]

1. c3 {[%clk 0:03:00]}  d5 {[%clk 0:02:59]} 2. d4 {[%clk 0:03:01]}  e6 {[%clk 0:02:59]} 3. Bf4 {[%clk 0:03:02]}  Bd6 {[%clk 0:02:59]} 4. e3 {[%clk 0:03:02]}  Bxf4 {[%clk 0:02:58]} 5. exf4 {[%clk 0:03:03]}  Ne7 {[%clk 0:02:58]} 6. Nd2 {[%clk 0:03:01]}  b6 {[%clk 0:02:58]} 7. Ngf3 {[%clk 0:03:01]}  O-O {[%clk 0:02:58]} 8. Bd3 {[%clk 0:03:01]}  Ba6 {[%clk 0:02:58]} 9. Bxh7+ {[%clk 0:02:51]}  Kxh7 {[%clk 0:02:57]} 10. Ng5+ {[%clk 0:02:51]}  Kh6 {[%clk 0:02:56]} 11. Qg4 {[%clk 0:02:45]}  Nf5 {[%clk 0:02:44]} 12. Ndf3 {[%clk 0:02:24]}  Nc6 {[%clk 0:02:32]} 13. Ne5 {[%clk 0:02:16]}  g6 {[%clk 0:01:00]} 14. Ngxf7+ {[%clk 0:02:11]} 1-0


[Site "https://www.chess.com"]

[Event "Titled Tuesday Blitz July 18 Late 2023"]
[White "Gadimbayli, Abdulla"]
[Black "Krishnan, Varun"]
[WhiteFideId "13404938"]
[BlackFideId "5054508"]
[WhiteElo "2841"]
[BlackElo "2586"]
[Result "1-0"]
[Round "3"]
[TimeControl "180+2"]
[Date "2023.07.18"]
[WhiteClock "0:01:54"]
[BlackClock "0:00:09"]
[Board "27"]

1. e4 {[%clk 0:03:00]}  a6 {[%clk 0:03:00]} 2. d4 {[%clk 0:02:58]}  e6 {[%clk 0:03:01]} 3. Nc3 {[%clk 0:02:56]}  d5 {[%clk 0:02:58]} 4. a3 {[%clk 0:02:53]}  Nf6 {[%clk 0:02:55]} 5. exd5 {[%clk 0:02:51]}  exd5 {[%clk 0:02:54]} 6. Nf3 {[%clk 0:02:51]}  Be7 {[%clk 0:02:49]} 7. h3 {[%clk 0:02:48]}  O-O {[%clk 0:02:48]} 8. Bd3 {[%clk 0:02:48]}  c5 {[%clk 0:02:41]} 9. dxc5 {[%clk 0:02:45]}  Bxc5 {[%clk 0:02:40]} 10. O-O {[%clk 0:02:45]}  h6 {[%clk 0:02:38]} 11. Bf4 {[%clk 0:02:44]}  Nc6 {[%clk 0:02:35]} 12. Qd2 {[%clk 0:02:44]}  d4 {[%clk 0:02:27]} 13. Bxh6 {[%clk 0:02:25]}  dxc3 {[%clk 0:01:50]} 14. Qg5 {[%clk 0:02:24]}  Ne8 {[%clk 0:01:50]} 15. Qh5 {[%clk 0:02:19]}  Nf6 {[%clk 0:01:06]} 16. Qg5 {[%clk 0:02:11]}  Ne8 {[%clk 0:01:04]} 17. Qh5 {[%clk 0:02:11]}  Nf6 {[%clk 0:01:03]} 18. Qh4 {[%clk 0:02:08]}  gxh6 {[%clk 0:00:59]} 19. Qxh6 {[%clk 0:02:09]}  Nd4 {[%clk 0:00:19]} 20. Rad1 {[%clk 0:01:58]}  Nxf3+ {[%clk 0:00:14]} 21. gxf3 {[%clk 0:01:59]}  Qc7 {[%clk 0:00:13]} 22. Kh1 {[%clk 0:01:56]}  Bg4 {[%clk 0:00:13]} 23. Qg5+ {[%clk 0:01:52]}  Kh8 {[%clk 0:00:09]} 24. Qxf6+ {[%clk 0:01:52]}  Kg8 {[%clk 0:00:09]} 25. Qg5+ {[%clk 0:01:53]}  Kh8 {[%clk 0:00:10]} 26. Qh6+ {[%clk 0:01:53]}  Kg8 {[%clk 0:00:09]} 27. Qh7# {[%clk 0:01:54]} 1-0


[Site "https://www.chess.com"]

[Event "Titled Tuesday Blitz July 18 Late 2023"]
[White "Zelbel, Patrick"]
[Black "Musovic, Armin"]
[WhiteFideId "24624322"]
[BlackFideId "939935"]
[WhiteElo "2832"]
[BlackElo "2549"]
[Result "0-1"]
[Round "3"]
[TimeControl "180+2"]
[Date "2023.07.18"]
[WhiteClock "0:00:13"]
[BlackClock "0:00:33"]
[Board "29"]

1. e4 {[%clk 0:03:00]}  c6 {[%clk 0:03:00]} 2. Nf3 {[%clk 0:02:58]}  d5 {[%clk 0:03:00]} 3. d3 {[%clk 0:02:58]}  dxe4 {[%clk 0:03:00]} 4. dxe4 {[%clk 0:02:59]}  Qxd1+ {[%clk 0:03:01]} 5. Kxd1 {[%clk 0:02:59]}  g6 {[%clk 0:03:02]} 6. a4 {[%clk 0:02:54]}  a5 {[%clk 0:03:01]} 7. Be3 {[%clk 0:02:46]}  Bg7 {[%clk 0:03:00]} 8. c3 {[%clk 0:02:46]}  Nd7 {[%clk 0:02:58]} 9. Kc2 {[%clk 0:02:44]}  Ngf6 {[%clk 0:02:56]} 10. Nbd2 {[%clk 0:02:43]}  Ng4 {[%clk 0:02:56]} 11. Bf4 {[%clk 0:02:42]}  Nxf2 {[%clk 0:02:55]} 12. Rg1 {[%clk 0:02:43]}  Ng4 {[%clk 0:02:55]} 13. h3 {[%clk 0:02:40]}  e5 {[%clk 0:02:56]} 14. Bg3 {[%clk 0:02:38]}  Ne3+ {[%clk 0:02:55]} 15. Kd3 {[%clk 0:02:31]}  Nxf1 {[%clk 0:02:56]} 16. Rgxf1 {[%clk 0:02:31]}  f6 {[%clk 0:02:57]} 17. Nc4 {[%clk 0:02:29]}  Ke7 {[%clk 0:02:57]} 18. Bf2 {[%clk 0:02:28]}  Rd8 {[%clk 0:02:55]} 19. Kc2 {[%clk 0:02:27]}  c5 {[%clk 0:02:41]} 20. Rad1 {[%clk 0:01:54]}  b6 {[%clk 0:02:34]} 21. Nxb6 {[%clk 0:01:52]}  Ba6 {[%clk 0:02:22]} 22. Rxd7+ {[%clk 0:01:30]}  Rxd7 {[%clk 0:02:20]} 23. Bxc5+ {[%clk 0:01:31]}  Ke8 {[%clk 0:02:16]} 24. Re1 {[%clk 0:01:13]}  Bd3+ {[%clk 0:02:04]} 25. Kc1 {[%clk 0:01:10]}  Bh6+ {[%clk 0:02:04]} 26. Be3 {[%clk 0:01:06]}  Bxe3+ {[%clk 0:02:01]} 27. Rxe3 {[%clk 0:01:07]}  Rad8 {[%clk 0:01:49]} 28. Nxd7 {[%clk 0:01:07]}  Rxd7 {[%clk 0:01:50]} 29. Ne1 {[%clk 0:01:01]}  Ba6 {[%clk 0:01:48]} 30. b3 {[%clk 0:00:58]}  Ke7 {[%clk 0:01:48]} 31. c4 {[%clk 0:00:58]}  Ke6 {[%clk 0:01:48]} 32. Rd3 {[%clk 0:00:58]}  Rc7 {[%clk 0:01:49]} 33. Kd2 {[%clk 0:00:57]}  f5 {[%clk 0:01:48]} 34. Ke3 {[%clk 0:00:51]}  Bb7 {[%clk 0:01:46]} 35. exf5+ {[%clk 0:00:29]}  gxf5 {[%clk 0:01:47]} 36. Rd8 {[%clk 0:00:28]}  f4+ {[%clk 0:01:43]} 37. Ke2 {[%clk 0:00:26]}  Rg7 {[%clk 0:01:41]} 38. Kf2 {[%clk 0:00:22]}  e4 {[%clk 0:01:40]} 39. Rf8 {[%clk 0:00:21]}  Ke5 {[%clk 0:01:35]} 40. c5 {[%clk 0:00:18]}  Bd5 {[%clk 0:01:24]} 41. Rd8 {[%clk 0:00:14]}  e3+ {[%clk 0:01:18]} 42. Ke2 {[%clk 0:00:14]}  Bxb3 {[%clk 0:01:07]} 43. Nd3+ {[%clk 0:00:14]}  Ke4 {[%clk 0:01:01]} 44. Re8+ {[%clk 0:00:14]}  Kd4 {[%clk 0:01:00]} 45. Nxf4 {[%clk 0:00:13]}  Bc4+ {[%clk 0:01:01]} 46. Kf3 {[%clk 0:00:12]}  e2 {[%clk 0:00:55]} 47. Nxe2+ {[%clk 0:00:12]}  Kxc5 {[%clk 0:00:55]} 48. Nf4 {[%clk 0:00:12]}  Rb7 {[%clk 0:00:50]} 49. Re5+ {[%clk 0:00:12]}  Kd4 {[%clk 0:00:48]} 50. Re4+ {[%clk 0:00:11]}  Kc5 {[%clk 0:00:48]} 51. g4 {[%clk 0:00:11]}  Rb3+ {[%clk 0:00:48]} 52. Kg2 {[%clk 0:00:11]}  Ra3 {[%clk 0:00:43]} 53. h4 {[%clk 0:00:11]}  Rxa4 {[%clk 0:00:43]} 54. g5 {[%clk 0:00:11]}  Ra2+ {[%clk 0:00:44]} 55. Kg3 {[%clk 0:00:11]}  a4 {[%clk 0:00:43]} 56. h5 {[%clk 0:00:11]}  Ra1 {[%clk 0:00:42]} 57. g6 {[%clk 0:00:11]}  hxg6 {[%clk 0:00:42]} 58. hxg6 {[%clk 0:00:12]}  Rg1+ {[%clk 0:00:39]} 59. Ng2 {[%clk 0:00:11]}  a3 {[%clk 0:00:35]} 60. g7 {[%clk 0:00:11]}  Bd5 {[%clk 0:00:33]} 61. Re5 {[%clk 0:00:09]}  Rxg2+ {[%clk 0:00:33]} 62. Kf4 {[%clk 0:00:09]}  Rxg7 {[%clk 0:00:34]} 63. Kf5 {[%clk 0:00:10]}  Rf7+ {[%clk 0:00:34]} 64. Kg5 {[%clk 0:00:10]}  Rf2 {[%clk 0:00:35]} 65. Re3 {[%clk 0:00:10]}  a2 {[%clk 0:00:35]} 66. Ra3 {[%clk 0:00:11]}  Rb2 {[%clk 0:00:34]} 67. Ra7 {[%clk 0:00:11]}  Rb1 {[%clk 0:00:34]} 68. Kg4 {[%clk 0:00:12]}  a1=Q {[%clk 0:00:34]} 69. Ra3 {[%clk 0:00:11]}  Qxa3 {[%clk 0:00:33]} 70. Kf5 {[%clk 0:00:12]}  Qf3+ {[%clk 0:00:33]} 71. Ke5 {[%clk 0:00:13]}  Re1# {[%clk 0:00:33]} 0-1


[Site "https://www.chess.com"]